fUSD/lending_fUSD_20241231
["ID","MTS","AMOUNT","RATE_DAILY","PERIOD"]
[347284443,1735656646033,-100517.69013668,0.00012489,2]
[347284445,1735656646042,-300.50111934,0.00012489,2]
[347284447,1735656646051,-65315.80917938,0.00012489,2]
[347284449,1735656646060,-382.78818312,0.00012489,2]
[347284451,1735656646069,-4431.83374138,0.0001249,2]
[347284453,1735656646079,-7821.13733156,0.0001249,2]
[347284455,1735656646089,-100517.69013668,0.00012491,2]
[347284457,1735656646098,-775.49900376,0.00012491,2]
[347284459,1735656646107,-65315.80917938,0.00012492,2]
[347284461,1735656646116,-3738.86963955,0.00012493,2]
[347284463,1735656646126,-200.0,0.00012494,2]
[347284465,1735656646135,-382.78818312,0.00012494,2]
[347284467,1735656646144,-100517.69013668,0.00012494,2]
[347284469,1735656646153,-21257.43622436,0.00012495,2]
[347284471,1735656646162,-364166.38532331,0.00012496,2]
[347284473,1735656646171,-200.0,0.00012496,2]
[347284475,1735656646180,-382.78818312,0.00012496,2]
[347284477,1735656646191,-100517.69013668,0.00012496,2]
[347284479,1735656646200,-3738.86963955,0.00012497,2]
[347284481,1735656646209,-21257.43622436,0.00012497,2]
[347284483,1735656646219,-2336.65962838,0.00012497,2]
[347284485,1735656646228,-9216.45115925,0.00012497,2]
[347284487,1735656646237,-100517.69013668,0.00012498,2]
[347284489,1735656646246,-775.49900376,0.00012498,2]
[347284491,1735656646260,-9216.45115925,0.00012498,2]
[347284493,1735656646269,-186580.0,0.00012499,2]
[347284495,1735656646278,-2062.1064408,0.00012499,2]
[347284497,1735656646287,-171.9869541,0.00012499,2]
[347284499,1735656646297,-223.1636299,0.00012499,2]
[347284501,1735656646306,-187.784172,0.00012499,2]
[347284503,1735656646315,-585.91125674,0.00012499,2]
[347284504,1735656646324,-3738.86963955,0.00012499,2]
[347284507,1735656646333,-3738.86963955,0.000125,2]
[347284508,1735656646343,-300.50111934,0.000125,2]
[347284510,1735656646352,-2336.65962838,0.000125,2]
[347284512,1735656646361,-3061925.68700075,0.000125,2]
[347284514,1735656646370,-3105951.45784794,0.000125,2]
[347284517,1735656646382,-674.18254825,0.000125,2]
[347284552,1735656646702,-4146.21838888,0.000125,2]
[347284558,1735656646745,-4260.09096714,0.000125,2]
[347284567,1735656646823,-1092.13677785,0.000125,2]
[347284569,1735656646835,-1983.898276,0.000125,2]
[347284571,1735656646846,-326.74154505,0.000125,2]
[347284573,1735656646857,-641.97035212,0.000125,2]
[347284576,1735656646868,-465.465853,0.000125,2]
[347284578,1735656646888,-4422.2573921,0.000125,2]
[347284580,1735656646899,-2417.74338737,0.000125,2]
[347284583,1735656646910,-833.87987711,0.000125,2]
[347284585,1735656646923,-3932.74721704,0.000125,2]
[347284593,1735656646994,-22322.03929,0.000125,2]
[347284596,1735656647005,-1164.90682513,0.000125,2]
[347284598,1735656647017,-9653.80000013,0.000125,2]
[347284600,1735656647028,-40347.95024,0.000125,2]
[347284602,1735656647039,-2033.70692799,0.000125,2]
[347284605,1735656647051,-13636.89355177,0.000125,2]
[347284616,1735656647149,-808.18543622,0.000125,2]
[347284618,1735656647160,-616.40024748,0.000125,2]
[347284799,1735656649010,-250.0,0.00012416,2]
[347284801,1735656649021,-217.85,0.00012416,2]
[347284803,1735656649030,-1718.32647248,0.000125,2]
[347284806,1735656649042,-14500.3,0.000125,2]
[347284808,1735656649054,-993.84692152,0.000125,2]
[347284810,1735656649066,-2193.15561258,0.000125,2]
[347284812,1735656649078,-918.0,0.000125,2]
[347284815,1735656649089,-30451.53233222,0.000125,2]
[347284817,1735656649101,-39727.51292869,0.000125,2]
[347284819,1735656649112,-25570.70545284,0.000125,2]
[347284821,1735656649125,-116997.45021944,0.000125,2]
[347284824,1735656649136,-36985.99698623,0.000125,2]
[347284839,1735656649273,-5691.61379999,0.000125,2]
[347284841,1735656649285,-43153.78343159,0.000125,2]
[347284845,1735656649314,-6576.06436248,0.000125,2]
[347284847,1735656649325,-1595.9611834,0.000125,2]
[347284850,1735656649337,-418.18435819,0.000125,2]
[347284852,1735656649348,-251639.09518473,0.000125,2]
[347284854,1735656649359,-777.741585,0.000125,2]
[347284856,1735656649375,-3759.5482,0.000125,2]
[347284858,1735656649389,-42217.3649194,0.000125,2]
[347284861,1735656649409,-390.21998,0.000125,2]
[347284863,1735656649425,-3822.48,0.000125,2]
[347284865,1735656649438,-90943.37067011,0.000125,2]
[347284880,1735656649567,-250575.47453898,0.000125,2]
[347284882,1735656649578,-1009.0940635,0.000125,2]
[347284884,1735656649589,-73014.45813037,0.000125,2]
[347284887,1735656649601,-1510.0603134,0.000125,2]
[347285371,1735657457429,277.32,9.554e-05,2]
[347285375,1735657608113,631.0,0.00015,60]
[347285399,1735657832942,-150.0,0.00011244,2]
[347285400,1735657832951,-250.0,0.00011374,2]
[347285401,1735657832960,-2455.91574988,0.00011374,2]
[347285402,1735657833009,-2422.3041439,0.00011374,2]
[347285403,1735657833021,-900.0,0.00011374,2]
[347285404,1735657833035,-1221.47,0.00011374,2]
[347285405,1735657833047,-600.0,0.00011374,2]
[347285406,1735657833059,-1116.199997,0.00011374,2]
[347285407,1735657833277,-413.21193929,0.00011374,2]
[347285408,1735657833289,-14770.89816993,0.00011374,2]
[347285409,1735657833301,-1000.0,0.00011494,2]
[347285410,1735657833311,-2045.06,0.00011507,2]
[347285411,1735657833321,-543.73,0.00011514,2]
[347285412,1735657833331,-473.41,0.00011647,2]
[347285413,1735657833341,-293.0,0.00011726,2]
[347285414,1735657833351,-277.32,0.00011818,2]
[347285415,1735657833361,-220.373,0.0001188,2]
[347285416,1735657833371,-318.0,0.00011998,2]
[347285417,1735657833382,-19528.4041419,0.00012106,4]
[347285418,1735657833416,-4850.0,0.00012106,4]
[347285448,1735657839057,-1374.12933306,0.00012106,2]
[347285449,1735657839119,-262.91194099,0.00012106,2]
[347285450,1735657839129,-560006.37527195,0.00012106,2]
[347285451,1735657839138,-22695387.51435076,0.00012106,4]
[347285452,1735657839254,-2682.394968,0.00012106,4]
[347285453,1735657839269,-821.00295725,0.00012106,4]
[347285454,1735657839297,-943.616,0.00012106,4]
[347285485,1735657843593,-500.0,0.00012105,2]
[347285486,1735657843603,-500.0,0.00012105,2]
[347285487,1735657843612,-500.0,0.00012105,2]
[347285488,1735657843622,-500.0,0.00012105,2]
[347285489,1735657843631,-500.0,0.00012105,2]
[347285490,1735657843641,-500.0,0.00012105,2]
[347285491,1735657843650,-500.0,0.00012105,2]
[347285492,1735657843660,-400.65329483,0.00012105,2]
[347285493,1735657843669,-500.0,0.00012105,2]
[347285494,1735657843679,-500.0,0.00012105,2]
[347285495,1735657843688,-500.0,0.00012105,2]
[347285496,1735657843697,-500.0,0.00012105,2]
[347285497,1735657843706,-277.54587937,0.00012105,2]
[347285498,1735657843717,-222.45412063,0.00012105,2]
[347285499,1735657843726,-166.48647042,0.00012105,2]
[347285500,1735657843736,-1262.17628509,0.00012106,4]
[347285501,1735657843838,-9391.28992989,0.00012106,4]
[347285502,1735657843905,-500.0,0.00012105,2]
[347285503,1735657843915,-7529.09884256,0.00012106,4]
[347285504,1735657843948,-574.51957173,0.00012105,2]
[347285505,1735657843958,-394.14812789,0.00012106,4]
[347285506,1735657843969,-1213.00845908,0.00012106,4]
[347285510,1735657846082,-285.2618,0.00012106,4]
[347285512,1735657846146,-1519.6123807,0.00012106,4]
[347285513,1735657846252,-479247.86312539,0.00012106,4]
[347285514,1735657846266,-9379.03312447,0.00012106,4]
[347285515,1735657846277,-16038.61259228,0.00012106,4]
[347285516,1735657858081,231.81,0.00010137,2]
[347285518,1735658216000,209.0,0.0002,120]
[347285519,1735658226742,150.25,0.00011015,2]
[347285522,1735658600636,272.53,8.651e-05,2]
[347285523,1735658601790,272.53,0.00010915,2]
[347285532,1735658634225,250.0,0.00010557,2]
[347285535,1735658662331,1517.37,0.00010543,2]
[347285537,1735658721085,150.0,0.00010874,2]
[347285538,1735658724199,150.0,0.00010874,2]
[347285540,1735658732137,150.0,0.00010874,2]
[347285541,1735658749900,150.0,0.00010874,2]
[347285542,1735658824393,196.77909196,0.00010971,2]
[347285551,1735658977976,236.7,0.00010508,2]
[347285571,1735659032832,-281.62,0.00011053,2]
[347285572,1735659032841,-281.62,0.00011056,2]
[347285573,1735659032851,-281.62,0.00011059,2]
[347285574,1735659032861,-111.22,0.00011062,2]
[347285575,1735659032872,-170.4,0.00011062,2]
[347285576,1735659032883,-281.62,0.00011065,2]
[347285577,1735659032893,-281.62,0.00011068,2]
[347285578,1735659032903,-281.62,0.00011071,2]
[347285579,1735659032913,-281.62,0.00011074,2]
[347285580,1735659032922,-281.62,0.00011077,2]
[347285581,1735659032932,-281.62,0.00011079,2]
[347285582,1735659032942,-281.62,0.00011082,2]
[347285583,1735659032952,-948.70816829,0.00011083,2]
[347285584,1735659032963,-51.29183171,0.00011083,2]
[347285585,1735659032973,-281.62,0.00011085,2]
[347285586,1735659032982,-281.62,0.00011088,2]
[347285587,1735659032991,-281.62,0.00011091,2]
[347285588,1735659033000,-281.62,0.00011094,2]
[347285589,1735659033009,-281.62,0.00011097,2]
[347285590,1735659033019,-281.62,0.000111,2]
[347285591,1735659033029,-281.62,0.00011103,2]
[347285592,1735659033039,-281.62,0.00011106,2]
[347285593,1735659033049,-281.62,0.00011108,2]
[347285594,1735659033059,-150.0,0.00011277,2]
[347285595,1735659033070,-552.56,0.00011286,2]
[347285596,1735659033080,-150.0,0.00011478,2]
[347285597,1735659033091,-150.0,0.00011679,2]
[347285598,1735659033101,-640.09179245,0.00011805,2]
[347285599,1735659033111,-154.34952978,0.00011806,2]
[347285600,1735659033122,-196.77909195,0.00011806,2]
[347285601,1735659033132,-6789.9522,0.00011806,2]
[347285602,1735659033142,-1803.99555369,0.00011806,2]
[347285603,1735659033242,-230.64604631,0.00011806,2]
[347285604,1735659033252,-211.407,0.0001188,2]
[347285605,1735659033262,-10568.49132139,0.000119,2]
[347285606,1735659033272,-2500.0,0.00011904,2]
[347285607,1735659033282,-9805.0099,0.00011905,2]
[347285608,1735659033293,-1653.7055,0.00011905,2]
[347285609,1735659033303,-14682.1511,0.00011905,2]
[347285610,1735659033314,-2619.107,0.00011906,2]
[347285611,1735659033565,-162.868,0.00011906,2]
[347285612,1735659033672,-7248.94451127,0.00011906,2]
[347285613,1735659033683,-151.0,0.00011906,2]
[347285614,1735659033693,-19912.71274068,0.00011906,2]
[347285615,1735659033703,-314.652,0.00011906,2]
[347285616,1735659033714,-14437.7562,0.00011906,2]
[347285617,1735659033724,-346.33388768,0.00011977,2]
[347285618,1735659033735,-94856.09942475,0.0001199,2]
[347285619,1735659033745,-450.0,0.00012,2]
[347285620,1735659033755,-131007.64181726,0.00012004,2]
[347285621,1735659033765,-222.7525,0.00012005,2]
[347285622,1735659033775,-5000.0,0.00012005,2]
[347285623,1735659033785,-21680.05307693,0.00012005,2]
[347285624,1735659033795,-37086.037,0.00012006,2]
[347285625,1735659033805,-1430.4553,0.00012006,2]
[347285626,1735659033814,-657.99086553,0.00012006,2]
[347285627,1735659033824,-10526.5875121,0.00012006,2]
[347285628,1735659033834,-169.78484889,0.00012006,2]
[347285629,1735659033845,-19171.00815232,0.00012006,2]
[347285630,1735659033854,-19948.4074,0.00012006,2]
[347285631,1735659033864,-98478.1954,0.00012006,2]
[347285632,1735659033873,-39184.6631,0.00012006,2]
[347285633,1735659033883,-5644.36898812,0.00012082,2]
[347285634,1735659033895,-26576.63101188,0.00012082,2]
[347285635,1735659033904,-281.29419928,0.00012082,2]
[347285636,1735659033913,-150.0,0.00012082,2]
[347285637,1735659033923,-188.04138849,0.00012082,2]
[347285638,1735659033932,-351.77943824,0.00012098,2]
[347285639,1735659033942,-6589.43805981,0.000121,2]
[347285640,1735659034062,-74.72299531,0.000121,2]
[347285641,1735659034072,-581.10203028,0.000121,2]
[347285642,1735659034083,-2086.45734374,0.00012104,2]
[347285643,1735659034092,-500.0,0.00012105,2]
[347285644,1735659034103,-82.23440448,0.00012105,2]
[347285645,1735659034247,-417.76559552,0.00012105,2]
[347285646,1735659034258,-500.0,0.00012105,2]
[347285647,1735659034268,-500.0,0.00012105,2]
[347285648,1735659034277,-500.0,0.00012105,2]
[347285649,1735659034288,-500.0,0.00012105,2]
[347285650,1735659034298,-500.0,0.00012105,2]
[347285651,1735659034307,-307.14193635,0.00012105,2]
[347285652,1735659034317,-500.0,0.00012105,2]
[347285653,1735659034327,-500.0,0.00012105,2]
[347285654,1735659034337,-500.0,0.00012105,2]
[347285655,1735659034346,-500.0,0.00012105,2]
[347285656,1735659034356,-585.913011,0.00012105,2]
[347285657,1735659034367,-588.78155465,0.00012105,2]
[347285658,1735659034481,-437.11199998,0.00012105,2]
[347285659,1735659034495,-6474.10644537,0.00012105,2]
[347285660,1735659034504,-226.69243293,0.00012105,2]
[347285661,1735659034514,-150.0,0.00012106,2]
[347285662,1735659034524,-44180.47754478,0.00012106,4]
[347285663,1735659034535,-47400.9879144,0.00012106,4]
[347285664,1735659034547,-314829.86884173,0.00012106,4]
[347285665,1735659034560,-1071.52999766,0.00012106,4]
[347285804,1735659039769,-447.500003,0.00012106,2]
[347285812,1735659039840,-1760.959996,0.00012106,2]
[347285814,1735659039886,-2026.86461996,0.00012106,2]
[347285815,1735659039896,-189.15547854,0.00012106,2]
[347285817,1735659039907,-1135918.51693842,0.00012106,2]
[347285819,1735659039917,-25386967.36916638,0.00012106,4]
[347285821,1735659039932,-449.23479685,0.00012106,4]
[347285833,1735659041423,-4785.83642843,0.00012106,4]
[347285834,1735659041456,-4914.85229797,0.00012106,4]
[347285835,1735659041467,-7552.66,0.00012106,4]
[347285836,1735659041515,-217098.0465341,0.00012106,4]
[347285837,1735659041526,-564.6989879,0.00012106,4]
[347285838,1735659041558,-331.40844841,0.00012106,4]
[347285839,1735659041569,-2066.66967825,0.00012106,4]
[347285846,1735659044151,-1228231.74742944,0.00012106,4]
[347285847,1735659044163,-263.86867618,0.00012106,4]
[347285848,1735659044299,-12228.4508203,0.00012106,4]
[347285849,1735659044311,-563.02680677,0.00012106,4]
[347285850,1735659044321,-715.0,0.00012106,4]
[347285851,1735659044333,-346.45745899,0.00012106,4]
[347285860,1735659045899,-4341.3166,0.00012106,4]
[347285861,1735659045949,-46343.38486139,0.00012106,4]
[347285862,1735659045960,-4783.91471952,0.00012106,4]
[347285863,1735659045997,-3086.88552804,0.00012106,4]
[347285864,1735659046010,-42025.59500107,0.00012106,4]
[347285865,1735659046043,-3488.5851,0.00012106,4]
[347285866,1735659046054,-11842.85757575,0.00012106,4]
[347285867,1735659046089,-4402.35621788,0.00012106,4]
[347285868,1735659046100,-2192.24609665,0.00012106,4]
[347285869,1735659046112,-983.37314169,0.00012106,4]
[347285870,1735659046123,-1199.50651755,0.00012106,4]
[347285871,1735659046161,-162761.92837605,0.00012106,4]
[347285872,1735659046184,-472839.40806617,0.00012106,4]
[347286188,1735659546574,-1000.0,0.00021,120]
[347286189,1735659546604,-390.0,0.00022,120]
[347286190,1735659546631,-2000.0,0.00022,120]
[347286191,1735659546658,-378.968243,0.0002223,120]
[347286192,1735659546683,-2000.0,0.0002223,120]
[347286193,1735659546709,-518.667561,0.0002223,120]
[347286194,1735659546738,-2000.0,0.00023,120]
[347286195,1735659546776,-1712.364196,0.0002373,120]
[347286196,1735659560863,-287.635804,0.0002373,120]
[347286197,1735659560891,-150.0,0.00023755,120]
[347286198,1735659560919,-2000.0,0.00024,120]
[347286199,1735659560946,-339.31271547,0.000244,120]
[347286200,1735659560973,-150.0,0.00024608,120]
[347286201,1735659561011,-150.5,0.0002467,120]
[347286202,1735659561036,-150.5,0.0002467,120]
[347286203,1735659561061,-150.5,0.0002467,120]
[347286204,1735659561087,-177.25,0.0002467,120]
[347286205,1735659561113,-318.0,0.0002467,120]
[347286206,1735659561138,-318.0,0.0002467,120]
[347286207,1735659561641,-150.5,0.0002467,120]
[347286208,1735659561668,-150.5,0.0002468,120]
[347286209,1735659561695,-150.5,0.0002468,120]
[347286210,1735659561722,-150.5,0.0002468,120]
[347286211,1735659561751,-150.5,0.0002468,120]
[347286212,1735659561783,-150.5,0.0002468,120]
[347286213,1735659561811,-150.5,0.0002468,120]
[347286214,1735659561839,-318.0,0.0002468,120]
[347286215,1735659561865,-318.0,0.0002468,120]
[347286216,1735659561890,-318.0,0.0002468,120]
[347286217,1735659561918,-323.44,0.0002468,120]
[347286218,1735659561944,-150.5,0.0002468,120]
[347286219,1735659561969,-259.74,0.0002468,120]
[347286220,1735659561996,-153.43,0.0002468,120]
[347286221,1735659562022,-150.5,0.0002469,120]
[347286222,1735659562047,-150.5,0.0002469,120]
[347286223,1735659562088,-150.5,0.0002469,120]
[347286224,1735659562120,-150.5,0.0002469,120]
[347286225,1735659562148,-150.5,0.0002469,120]
[347286226,1735659562174,-269.12,0.0002469,120]
[347286227,1735659562201,-150.5,0.0002469,120]
[347286228,1735659562229,-318.0,0.0002469,120]
[347286229,1735659562256,-318.0,0.0002469,120]
[347286230,1735659562283,-318.0,0.0002469,120]
[347286231,1735659562309,-318.0,0.0002469,120]
[347286232,1735659562338,-150.5,0.0002469,120]
[347286233,1735659562365,-150.5,0.0002469,120]
[347286234,1735659562394,-150.5,0.0002469,120]
[347286235,1735659562425,-18.07148053,0.00024906,120]
[347286237,1735659585287,288.29,9.179e-05,2]
[347286243,1735659911100,1012.15,0.0001101,2]
[347286244,1735659914999,154.24342154,0.00010874,2]
[347286245,1735659929108,110.40207605,0.00010955,2]
[347286246,1735659929133,89.59792395,0.00010955,2]
[347286249,1735660061459,370.12,0.00010988,2]
[347286250,1735660066895,2154.72828617,0.00010968,2]
[347286253,1735660232435,-250.0,0.00011061,2]
[347286254,1735660232447,-218.16360643,0.00011068,2]
[347286255,1735660232458,-407.81996812,0.00011168,2]
[347286256,1735660232471,-592.18003188,0.00011168,2]
[347286257,1735660232481,-643.39,0.00011281,2]
[347286258,1735660232491,-288.29,0.00011443,2]
[347286259,1735660232500,-150.0,0.00011781,2]
[347286260,1735660232510,-1000.0,0.000118,2]
[347286261,1735660232520,-2095.286,0.00011806,2]
[347286262,1735660232530,-162.868,0.00011806,2]
[347286263,1735660232540,-1114.6308,0.00011806,2]
[347286265,1735660232550,-217.467,0.0001188,2]
[347286266,1735660232560,-359.24867462,0.0001189,2]
[347286267,1735660232648,-789.21824153,0.0001189,2]
[347286268,1735660232660,-33028.26468385,0.0001189,2]
[347286270,1735660232670,-929.87453558,0.0001189,2]
[347286284,1735660238413,-4070.12546442,0.0001189,2]
[347286286,1735660238423,-1306.6977,0.0001189,2]
[347286288,1735660238433,-2500.0,0.0001189,2]
[347286290,1735660238444,-344.24057138,0.00011899,2]
[347286292,1735660238453,-1049.80372929,0.000119,2]
[347286294,1735660238463,-1049.80372927,0.00011903,2]
[347286296,1735660238472,-500.0,0.00011904,2]
[347286298,1735660238482,-45469.6068,0.00011904,2]
[347286300,1735660238492,-193.06072043,0.00011906,2]
[347286302,1735660238502,-1049.80372927,0.00011906,2]
[347286304,1735660238511,-16837.47046872,0.00011906,2]
[347286306,1735660238520,-429.39983456,0.00011956,2]
[347286308,1735660238530,-3000.0,0.0001198,2]
[347286310,1735660238539,-164.65862884,0.00011985,2]
[347286312,1735660238550,-500.0,0.00011989,2]
[347286314,1735660238560,-166.48647042,0.00011989,2]
[347286317,1735660238569,-500.0,0.00011989,2]
[347286320,1735660238578,-370.98823169,0.00011989,2]
[347286322,1735660238587,-683743.42850819,0.0001199,2]
[347286324,1735660238597,-845.75801336,0.00012,2]
[347286326,1735660238606,-450.0,0.00012,2]
[347286328,1735660238616,-3594.04223337,0.00012003,2]
[347286330,1735660238625,-5980.1711,0.00012006,2]
[347286332,1735660238635,-2431751.5283,0.00012006,2]
[347286334,1735660238644,-164.65862884,0.00012006,2]
[347286336,1735660238654,-1000.0,0.00012006,2]
[347286338,1735660238664,-356.44797086,0.00012073,2]
[347286340,1735660238674,-500.0,0.00012073,2]
[347286342,1735660238683,-500.0,0.00012073,2]
[347286344,1735660238692,-1000.0,0.000121,2]
[347286346,1735660238702,-3531.81193296,0.00012106,2]
[347286347,1735660238710,-1829335.82958914,0.00012106,2]
[347286350,1735660238720,-1641620.45328444,0.00012106,4]
[347286352,1735660238729,-20026191.46259155,0.00012106,4]
[347286500,1735660240278,-488.72323105,0.0001189,2]
[347286556,1735660240871,-99688.51916895,0.0001189,2]
[347286558,1735660240880,-329394.3026913,0.00012106,4]
[347286560,1735660240891,-286.78137578,0.00012106,4]
[347286841,1735660243553,-854.67582563,0.00012106,4]
[347286843,1735660243565,-2336675.08760794,0.00012106,4]
[347286846,1735660243576,-5741.28913186,0.00012106,4]
[347286911,1735660244443,-500.0,0.00012073,2]
[347286912,1735660244453,-146643.3244161,0.00012106,4]
[347287254,1735660247966,-2638.04636049,0.00012106,4]
[347287266,1735660248089,-654.95343192,0.00012106,4]
[347287279,1735660248205,-416.29736584,0.00012106,4]
[347287281,1735660248217,-873.2742778,0.00012106,4]
[347287284,1735660248229,-2092.955647,0.00012106,4]
[347287286,1735660248240,-4798.6831098,0.00012106,4]
[347287305,1735660248495,-295.13859627,0.00012106,4]
[347288689,1735660714660,301.94,9.299e-05,2]
[347288693,1735661051603,237.16,0.00010137,2]
[347289250,1735661225228,250.0,0.00011014,2]
[347289367,1735661312794,621.93,0.00011004,2]
[347289387,1735661355157,-947.72946,0.00011038,2]
[347289388,1735661355183,-310.94,0.00011094,2]
[347289389,1735661355204,-300.0,0.0001115,2]
[347289390,1735661355227,-4415.85432988,0.00011151,2]
[347289391,1735661365181,-9256.25567012,0.00011151,2]
[347289392,1735661365689,-743.74432988,0.00011197,2]
[347289393,1735661373156,-256.25567012,0.00011197,2]
[347289394,1735661373179,-9743.74432988,0.00011197,2]
[347289396,1735661410907,-300.0,0.00011196,2]
[347289397,1735661410928,-9700.0,0.00011197,2]
[347289431,1735661432574,-1530.12,0.00011112,2]
[347289432,1735661432584,-250.0,0.00011233,2]
[347289433,1735661432594,-250.0,0.00011247,2]
[347289434,1735661432604,-162.869,0.00011407,2]
[347289435,1735661432614,-1676.229,0.00011407,2]
[347289436,1735661432624,-649.7,0.00011407,2]
[347289437,1735661432634,-208.204,0.000115,2]
[347289438,1735661432643,-301.94,0.00011563,2]
[347289439,1735661432653,-150.47,0.0001185,2]
[347289441,1735661432663,-151.29,0.0001185,2]
[347289443,1735661432672,-150.47,0.0001185,2]
[347289445,1735661432681,-731.05375392,0.0001189,2]
[347289447,1735661432692,-471.32155123,0.0001189,2]
[347289452,1735661432733,-718.78087629,0.0001189,2]
[347289454,1735661432745,-3742.85521856,0.0001189,2]
[347289456,1735661432754,-2140.1772,0.0001189,2]
[347289458,1735661432764,-500.0,0.0001189,2]
[347289460,1735661432776,-152.37,0.00011907,2]
[347289462,1735661432785,-152.4,0.00011907,2]
[347289464,1735661432794,-3000.0,0.0001198,2]
[347289466,1735661432804,-232.0608174,0.00011999,2]
[347289468,1735661432813,-290.658471,0.00012,2]
[347289471,1735661432823,-1000.0,0.00012006,2]
[347289473,1735661432831,-800.9495,0.00012006,2]
[347289476,1735661432841,-749.6442,0.00012006,2]
[347289478,1735661432850,-3313.4314,0.00012006,2]
[347289482,1735661432860,-825.75811227,0.00012007,2]
[347289484,1735661432868,-304.80091424,0.00012042,2]
[347289487,1735661432878,-771.41,0.00012055,2]
[347289489,1735661432887,-714.43,0.00012055,2]
[347289491,1735661432896,-437.49,0.000121,2]
[347289493,1735661432906,-771.41,0.000121,2]
[347289495,1735661432915,-771.41,0.000121,2]
[347289497,1735661432924,-437.49,0.000121,2]
[347289498,1735661432933,-437.49,0.000121,2]
[347289500,1735661432943,-771.41,0.000121,2]
[347289502,1735661432952,-437.13,0.000121,2]
[347289504,1735661432961,-771.41,0.000121,2]
[347289506,1735661432970,-152.33202574,0.00012105,2]
[347289508,1735661432979,-164.43953028,0.00012105,2]
[347289510,1735661432988,-500.0,0.00012105,2]
[347289512,1735661432998,-619.0,0.00012106,2]
[347289514,1735661433007,-64639.97196423,0.00012106,4]
[347289516,1735661433019,-16800.01517801,0.00012106,4]
[347289521,1735661433063,-1256.85614415,0.00012106,4]
[347289539,1735661433259,-334.37549013,0.00012106,4]
[347289540,1735661433307,-10855.063444,0.00012106,4]
[347289541,1735661433318,-736548.68888998,0.00012106,4]
[347289542,1735661433329,-524.7693386,0.00012106,4]
[347289543,1735661433340,-3309.99995,0.00012106,4]
[347290029,1735661438227,-515.28705452,0.00011407,2]
[347290031,1735661438239,-766.34341095,0.00011407,2]
[347290037,1735661438291,-2154.7,0.00011407,2]
[347290045,1735661438349,-1904.63,0.00011407,2]
[347290055,1735661438439,-38673.31743309,0.00011407,2]
[347290057,1735661438450,-23672986.40189371,0.00012106,4]
[347290319,1735661440823,-12427.65212002,0.00012106,4]
[347290329,1735661440909,-1735.29944496,0.00012106,4]
[347290333,1735661440937,-531.21196443,0.00012106,4]
[347290539,1735661443377,-409.73072844,0.00012106,4]
[347290540,1735661443544,-14903.26245768,0.00012106,4]
[347290792,1735661446351,-555.0,0.00012106,2]
[347290794,1735661446361,-9882.15158,0.00012106,4]
[347290796,1735661446375,-1521.16383373,0.00012106,4]
[347290805,1735661446445,-75442.47539014,0.00012106,4]
[347290807,1735661446457,-1068.883505,0.00012106,4]
[347290810,1735661446491,-4077.0,0.00012106,4]
[347290817,1735661446603,-899.999999,0.00012106,4]
[347291613,1735661620001,313.91,9.381e-05,2]
[347291616,1735661880831,-50000.0,0.00012106,4]
[347291620,1735662334412,180.16713446,0.0001,2]
[347291621,1735662416324,250.0,0.00010962,2]
[347291623,1735662471640,-9255.92286554,0.00011021,2]
[347291624,1735662477099,-10000.0,0.00011021,2]
[347291625,1735662484579,-300.0,0.0001102,2]
[347291626,1735662484601,-9700.0,0.00011021,2]
[347291627,1735662496792,-6672.76463088,0.00011021,2]
[347291628,1735662496815,-1000.0,0.000111,2]
[347291633,1735662549876,250.0,0.00011075,2]
[347291634,1735662553139,315.19,9.171e-05,2]
[347291639,1735662569219,-519.76,0.00011117,2]
[347291640,1735662569243,-150.0,0.00011121,2]
[347291641,1735662569267,-150.0,0.00011121,2]